bitfinex/quotes_SOLUSD_20240713
["timestamp","ask_amount","ask_price","bid_price","bid_amount"]
[1720866963391,10.0,140.5,140.44,22.5662]
[1720866963571,21.78004191,140.49,140.44,22.5662]
[1720866963756,1.78003216,140.48,140.44,22.5662]
[1720866964261,1.77979948,140.5,140.44,22.5662]
[1720866965175,11.77979948,140.5,140.4,22.5662]
[1720866965386,20.0,140.49,140.4,22.5662]
[1720866965558,21.78003601,140.49,140.4,22.5662]
[1720866965759,20.0,140.49,140.4,22.5662]
[1720866965971,21.77973816,140.51,140.4,22.5662]
[1720866966952,21.77973816,140.51,140.41,45.0]
[1720866967373,21.77973816,140.51,140.42,1.42381264]
[1720866967579,21.77973816,140.51,140.41,45.0]
[1720866968076,10.0,140.5,140.41,45.0]
[1720866968281,21.77997217,140.49,140.41,45.0]
[1720866968492,21.77997217,140.49,140.4,22.5662]
[1720866969982,21.77997217,140.49,140.41,45.0]
[1720866970387,1.77997217,140.49,140.41,45.0]
[1720866970566,21.77996795,140.51,140.41,45.0]
[1720866971478,10.0,140.49,140.4,22.5662]
[1720866971662,21.78020105,140.48,140.4,22.5662]
[1720866971982,10.0,140.47,140.37,22.7943]
[1720866972195,1.78060599,140.46,140.37,22.7943]
[1720866972374,1.78064543,140.45,140.37,6.2122]
[1720866972563,10.0,140.42,140.33,22.7943]
[1720866972766,1.78109267,140.41,140.33,22.7943]
[1720866972984,21.78109267,140.41,140.33,22.7943]
[1720866973681,21.78109267,140.41,140.33,22.2943]
[1720866974477,29.15956579,140.41,140.33,22.2943]
[1720866974777,21.78109267,140.41,140.33,22.2943]
[1720866974971,21.78101155,140.4,140.33,22.2943]
[1720866975177,1.78101155,140.4,140.33,22.2943]
[1720866975376,37.88311155,140.4,140.26,6.2122]
[1720866975572,37.88311155,140.4,140.27,1.42501674]
[1720866975778,37.88311155,140.4,140.28,6.2122]
[1720866975981,37.88311155,140.4,140.29,1.42497607]
[1720866976179,37.88311155,140.4,140.3,1.42496968]
[1720866976564,21.78101155,140.4,140.3,1.42496968]
[1720866976767,1.78101155,140.4,140.31,16.5821]
[1720866976992,1.78110136,140.39,140.32,46.42488108]
[1720866977199,1.78110136,140.39,140.33,1.42501518]
[1720866977885,1.78110136,140.39,140.32,45.0]
[1720866979262,20.0,140.42,140.32,45.0]
[1720866979263,1.78110122,140.41,140.32,45.0]
[1720866980008,11.78110122,140.41,140.32,45.0]
[1720866980368,20.0,140.4,140.32,45.0]
[1720866980694,1.78110001,140.39,140.32,45.0]
[1720866981592,1.78110036,140.41,140.32,45.0]
[1720866982902,1.78110036,140.41,140.33,6.2122]
[1720866983081,1.7807697,140.42,140.34,44.5]
[1720866983975,1.7807697,140.42,140.35,0.84115123]
[1720866984184,21.7807697,140.42,140.35,0.84115123]
[1720866985576,21.7807697,140.42,140.35,1.42457487]
[1720866985881,1.78072021,140.41,140.35,1.42457487]
[1720866986097,1.78057008,140.42,140.34,44.5]
[1720866990207,1.78057008,140.42,140.35,16.1953]
[1720866990380,1.78057008,140.42,140.36,45.0]
[1720866990574,1.7807358,140.41,140.37,1.42458864]
[1720866990776,1.78073572,140.44,140.37,1.42458864]
[1720866993517,1.78073572,140.44,140.36,45.0]
[1720866993879,15.0823,140.42,140.33,6.2122]
[1720866994074,21.78084867,140.41,140.33,6.2122]
[1720866995397,21.78084867,140.41,140.34,45.0]
[1720866995712,20.0,140.41,140.35,0.4723879]
[1720866995912,21.78078615,140.44,140.35,0.4723879]
[1720866996303,21.78078615,140.44,140.34,45.0]
[1720866996812,21.78078615,140.44,140.33,6.2122]
[1720866997108,29.15605514,140.44,140.33,6.2122]
[1720866997415,10.0,140.43,140.33,6.2122]
[1720866997576,21.78095554,140.42,140.33,6.2122]
[1720866997779,15.0823,140.41,140.33,6.2122]
[1720866998080,21.78115459,140.4,140.33,6.2122]
[1720866998284,1.78116412,140.39,140.33,6.2122]
[1720867001303,21.78109788,140.4,140.33,6.2122]
[1720867001608,21.78109788,140.4,140.34,45.0]
[1720867001899,21.78109788,140.4,140.35,1.42148462]
[1720867002281,20.0,140.4,140.35,1.42148462]
[1720867002477,1.78084921,140.41,140.35,1.42148462]
[1720867003599,1.78084921,140.41,140.34,45.0]
[1720867003992,1.78084921,140.41,140.35,1.42123083]
[1720867004193,1.78084921,140.41,140.36,1.42112957]
[1720867005199,1.78084921,140.41,140.33,6.2122]
[1720867007199,10.0,140.4,140.3,6.1794]
[1720867007404,21.78135245,140.39,140.3,6.1794]
[1720867008406,25.232,140.38,140.3,6.1794]
[1720867008587,21.78150861,140.37,140.3,6.1794]
[1720867010601,21.78150861,140.37,140.31,45.0]
[1720867011192,20.0,140.37,140.31,45.0]
[1720867011397,1.78113176,140.4,140.31,45.0]
[1720867011604,1.78112822,140.39,140.31,45.0]
[1720867011988,1.78102425,140.41,140.31,45.0]
[1720867012188,1.7811091,140.41,140.31,45.0]
[1720867012388,10.0,140.4,140.31,45.0]
[1720867012686,1.78124269,140.39,140.31,45.0]
[1720867013091,21.78124269,140.39,140.31,45.0]
[1720867014894,28.26204269,140.39,140.31,45.0]
[1720867015092,10.0,140.38,140.3,6.1794]
[1720867015296,21.78152584,140.37,140.3,6.1794]
[1720867016006,1.78152584,140.37,140.3,6.1794]
[1720867016315,20.0,140.36,140.3,6.1794]
[1720867016507,1.78152584,140.37,140.3,6.1794]
[1720867017919,1.78152584,140.37,140.31,45.0]
[1720867019008,1.78152584,140.37,140.32,1.42508604]
[1720867020412,1.78152584,140.37,140.31,45.0]
[1720867020590,21.7811824,140.38,140.31,45.0]
[1720867021409,21.7811173,140.4,140.31,45.0]
[1720867021608,20.0,140.37,140.32,1.42376206]
[1720867021795,20.0,140.37,140.33,1.42491848]
[1720867021990,1.78112358,140.39,140.33,1.42491848]
[1720867022414,1.78112358,140.39,140.31,45.0]
[1720867022718,1.78112358,140.39,140.32,1.42499794]
[1720867022907,1.92877153,140.38,140.32,1.42499794]
[1720867023113,1.7812249,140.37,140.32,1.42499794]
[1720867023302,1.78116008,140.39,140.32,1.42499794]
[1720867023620,1.92877199,140.38,140.32,1.42499794]
[1720867023818,1.78117868,140.37,140.32,1.42499794]
[1720867024017,1.78118027,140.39,140.32,1.42499794]
[1720867024908,1.92877153,140.38,140.31,45.0]
[1720867025141,1.78139359,140.37,140.31,45.0]
[1720867025301,1.78130987,140.39,140.31,45.0]
[1720867025501,1.928817,140.38,140.32,1.42503597]
[1720867025817,1.78129422,140.37,140.32,1.42503597]
[1720867026000,1.78118029,140.39,140.32,1.42503597]
[1720867026200,1.92877308,140.38,140.32,1.42503597]
[1720867026399,1.78118363,140.37,140.32,1.42503597]
[1720867026616,1.78118374,140.39,140.32,1.42503597]
[1720867026800,1.92877354,140.38,140.31,45.0]
[1720867026999,1.78136652,140.37,140.31,45.0]
[1720867027609,1.78132355,140.39,140.31,45.0]
[1720867027812,1.92887421,140.38,140.31,45.0]
[1720867028007,1.78128683,140.37,140.31,45.0]
[1720867028418,1.78128362,140.39,140.32,1.42502689]
[1720867028621,1.92882942,140.38,140.32,1.42502689]
[1720867028813,1.78128358,140.37,140.32,1.42502689]
[1720867029017,1.78128444,140.39,140.32,1.42502689]
[1720867029326,1.92882919,140.38,140.31,45.0]
[1720867029526,1.78128923,140.37,140.31,45.0]
[1720867029727,1.78128704,140.39,140.31,45.0]
[1720867029913,1.92887421,140.38,140.31,45.0]
[1720867030131,1.78128681,140.37,140.31,45.0]
[1720867030311,1.7812906,140.36,140.31,45.0]
[1720867030518,1.7814425,140.39,140.3,6.1794]
[1720867030708,1.92893165,140.38,140.3,6.1794]
[1720867030909,3.71037543,140.37,140.3,6.1794]
[1720867031136,1.78144378,140.37,140.3,6.1794]
[1720867031810,21.78144378,140.37,140.3,6.1794]
[1720867033130,1.92908162,140.36,140.27,6.1509]
[1720867033307,1.78171293,140.35,140.28,45.0]
[1720867034226,1.78167275,140.36,140.28,45.0]
[1720867034408,1.78150874,140.35,140.29,0.46525954]
[1720867034612,1.78150803,140.36,140.29,0.46525954]
[1720867034813,1.78150862,140.35,140.29,0.46525954]
[1720867035011,1.78150866,140.36,140.29,0.46525954]
[1720867035325,1.78150851,140.35,140.29,1.42520693]
[1720867035536,1.78150851,140.35,140.3,1.42520681]
[1720867036228,1.78150873,140.36,140.3,1.42520681]
[1720867036409,1.78150872,140.35,140.29,1.42520681]
[1720867036611,1.78150872,140.36,140.3,1.4252068]
[1720867036831,1.78150875,140.35,140.3,1.4252068]
[1720867037032,1.78150875,140.35,140.28,45.0]
[1720867037729,1.78167838,140.36,140.28,45.0]
[1720867037925,3.71095165,140.35,140.28,45.0]
[1720867038228,1.78167772,140.35,140.28,45.0]
[1720867038907,1.78152087,140.36,140.28,45.0]
[1720867039107,3.71086118,140.35,140.28,45.0]
[1720867039327,1.7816743,140.35,140.28,45.0]
[1720867039709,1.7816743,140.35,140.29,1.42521497]
[1720867040027,1.7815218,140.36,140.3,1.42521744]
[1720867040223,3.71070499,140.35,140.3,1.42521744]
[1720867040414,1.78152068,140.35,140.3,1.42521744]
[1720867040929,1.78152068,140.35,140.29,1.42521523]
[1720867041133,1.78152068,140.35,140.3,1.42511403]
[1720867042028,1.78152068,140.35,140.29,1.4251232]
[1720867042331,1.78152068,140.35,140.3,1.42521438]
[1720867043210,1.78152068,140.35,140.29,1.42521389]
[1720867043432,1.78152068,140.35,140.3,1.42521354]
[1720867044337,1.78152068,140.35,140.29,1.42521312]
[1720867044523,1.78152068,140.35,140.3,1.42513994]
[1720867044829,102.18670558,140.34,140.3,1.42513994]
[1720867045520,102.18670558,140.34,140.29,1.42521307]
[1720867045836,102.18670558,140.34,140.3,1.42521307]
[1720867046735,102.18670558,140.34,140.29,1.42521307]
[1720867046940,102.18670558,140.34,140.3,1.42512509]
[1720867048132,102.18670558,140.34,140.28,45.0]
[1720867048521,1.78158388,140.33,140.27,6.1509]
[1720867049326,1.78158388,140.33,140.26,16.4814]
[1720867049522,1.92960486,140.32,140.24,6.1097]
[1720867049726,1.78198243,140.31,140.24,6.1097]
[1720867050526,1.78198243,140.31,140.25,0.68666483]
[1720867050727,21.78198243,140.31,140.25,1.42577595]
[1720867054434,21.78198243,140.31,140.23,1.42577599]
[1720867054632,21.78198243,140.31,140.24,1.42567432]
[1720867055827,21.78198243,140.31,140.23,45.0]
[1720867057335,20.0,140.31,140.23,45.0]
[1720867057521,16.2118,140.32,140.24,20.0]
[1720867057721,16.2118,140.32,140.25,45.0]
[1720867059120,102.18670558,140.34,140.25,51.1097]
[1720867059319,102.18670558,140.34,140.26,17.71969834]
[1720867059519,102.18670558,140.34,140.27,45.0]
[1720867059729,102.18670558,140.34,140.28,1.42521714]
[1720867062826,102.18670558,140.34,140.28,21.42521714]
[1720867063134,102.18670558,140.34,140.29,45.0]
[1720867063330,102.18670558,140.34,140.3,7.53471397]
[1720867063644,102.18670558,140.34,140.31,45.0]
[1720867063836,102.18670558,140.34,140.32,1.42481087]
[1720867065047,102.18670558,140.34,140.33,1.42470933]
[1720867065228,102.18670558,140.34,140.32,1.42470933]
[1720867065430,102.18670558,140.34,140.31,45.0]
[1720867067334,102.18670558,140.34,140.28,20.0]
[1720867067539,102.18670558,140.34,140.27,20.0]
[1720867068357,1.78152339,140.33,140.27,20.0]
[1720867070058,1.78152339,140.33,140.23,6.167]
[1720867070842,1.78152339,140.33,140.23,12.69660537]
[1720867071033,1.78152339,140.33,140.24,45.0]
[1720867071560,1.78152339,140.33,140.25,20.0]
[1720867071734,1.78152339,140.33,140.26,45.0]
[1720867073273,117.56720558,140.34,140.26,45.0]
[1720867075135,102.18670558,140.34,140.27,36.6307]
[1720867075432,102.18670558,140.34,140.28,45.0]
[1720867077843,102.18670558,140.34,140.28,51.167]
[1720867079067,102.18670558,140.34,140.29,20.0]
[1720867079243,102.18670558,140.34,140.3,45.0]
[1720867079568,102.18670558,140.34,140.31,1.42502755]
[1720867081559,102.18670558,140.34,140.3,45.0]
[1720867081859,102.18670558,140.34,140.31,20.0]
[1720867082034,102.18670558,140.34,140.32,45.0]
[1720867082452,102.18670558,140.34,140.33,20.0]
[1720867082639,102.18670558,140.34,140.33,65.0]
[1720867082838,102.18670558,140.34,140.33,66.42382389]
[1720867083039,102.18670558,140.34,140.33,65.0]
[1720867085559,102.18670558,140.34,140.33,45.0]
[1720867086851,102.18670558,140.34,140.3,1.42382393]
[1720867088149,102.18670558,140.34,140.3,46.42382393]
[1720867089859,102.18670558,140.34,140.3,45.0]
[1720867090561,102.18670558,140.34,140.28,6.52960537]
[1720867090762,102.18670558,140.34,140.26,9.09565755]
[1720867091552,20.0,140.33,140.24,8.9912842]
[1720867091764,21.78157246,140.33,140.24,6.1959]
[1720867092767,21.78157246,140.33,140.25,20.0]
[1720867092956,21.78157246,140.33,140.26,45.0]
[1720867094055,1.78177512,140.32,140.26,45.0]
[1720867094766,21.78175491,140.33,140.26,45.0]
[1720867094952,20.0,140.33,140.26,45.0]
[1720867095261,102.18670558,140.34,140.26,45.0]
[1720867095470,102.18670558,140.34,140.27,20.0]
[1720867095657,102.18670558,140.34,140.28,45.0]
[1720867098162,102.18670558,140.34,140.29,20.0]
[1720867098365,102.18670558,140.34,140.3,45.0]
[1720867098564,102.18670558,140.34,140.31,20.0]
[1720867098747,102.18670558,140.34,140.32,45.0]
[1720867100271,102.18670558,140.34,140.33,1.42499628]
[1720867102548,102.18670558,140.34,140.32,45.0]
[1720867102754,102.18670558,140.34,140.33,1.02831382]
[1720867102961,102.18670558,140.34,140.33,21.02831382]
[1720867103161,102.18670558,140.34,140.33,66.02831382]
[1720867104255,102.18670558,140.34,140.33,65.0]
[1720867107874,102.18670558,140.34,140.33,20.0]
[1720867108076,102.18670558,140.34,140.3,21.42158021]
[1720867108984,102.18670558,140.34,140.3,20.0]
[1720867109156,102.18670558,140.34,140.31,45.0]
[1720867109358,102.18670558,140.34,140.32,20.0]
[1720867109680,102.18670558,140.34,140.33,45.0]
[1720867109873,102.18670558,140.34,140.33,65.0]
[1720867110060,102.18670558,140.34,140.33,45.0]
[1720867110375,102.18670558,140.34,140.29,6.1959]
[1720867110754,102.18670558,140.34,140.27,8.70079412]
[1720867111553,102.18670558,140.34,140.28,20.0]
[1720867111762,102.18670558,140.34,140.29,45.0]
[1720867111971,102.18670558,140.34,140.28,45.0]
[1720867113088,102.18670558,140.34,140.29,20.0]
[1720867113263,102.18670558,140.34,140.3,45.0]
[1720867115233,102.18670558,140.34,140.2,7.37294986]
[1720867115234,117.30980558,140.34,140.2,7.37294986]
[1720867115479,117.30980558,140.34,140.25,36.51753376]
[1720867115660,117.30980558,140.34,140.26,8.70079412]
[1720867116480,117.30980558,140.34,140.27,20.0]
[1720867116874,117.30980558,140.34,140.28,45.0]
[1720867117082,117.30980558,140.34,140.29,20.0]
[1720867117266,117.30980558,140.34,140.3,45.0]
[1720867122892,117.30980558,140.34,140.29,20.0]
[1720867123077,117.30980558,140.34,140.27,20.0]
[1720867123586,1.78161165,140.33,140.27,20.0]
[1720867123897,1.78161165,140.33,140.22,15.10299412]
[1720867124694,6.3917,140.32,140.22,15.10299412]
[1720867124899,1.78191795,140.31,140.22,15.10299412]
[1720867125908,6.3917,140.32,140.23,53.70079412]
[1720867126081,6.3917,140.32,140.23,73.70079412]
[1720867126279,117.30980558,140.34,140.23,95.13079412]
[1720867126495,119.09138726,140.34,140.23,95.13079412]
[1720867126893,117.30980558,140.34,140.23,95.13079412]
[1720867127096,1.78147163,140.33,140.23,95.13079412]
[1720867127403,117.30980558,140.34,140.23,95.13079412]
[1720867128090,119.09136222,140.34,140.23,95.13079412]
[1720867128295,119.09136222,140.34,140.23,73.70079412]
[1720867128607,119.09136222,140.34,140.24,0.50008781]
[1720867129297,117.30980558,140.34,140.24,9.20088193]
[1720867129495,117.30980558,140.34,140.25,65.0]
[1720867129693,117.30980558,140.34,140.26,0.5000165]
[1720867129893,117.30980558,140.34,140.27,0.4999809]
[1720867130227,117.30980558,140.34,140.26,1.42523923]
[1720867130389,117.30980558,140.34,140.27,1.42523986]
[1720867131407,117.30980558,140.34,140.25,65.0]
[1720867133994,1.78158158,140.33,140.25,65.0]
[1720867135718,119.09148035,140.34,140.25,65.0]
[1720867136497,117.30980558,140.34,140.25,65.0]
[1720867140598,1.78157812,140.33,140.25,65.0]
[1720867143096,117.30980558,140.34,140.25,20.0]
[1720867143097,15.8523,140.31,140.25,20.0]
[1720867143301,15.8523,140.31,140.23,20.0]
[1720867144295,6.5069,140.3,140.23,20.0]
[1720867144520,6.5069,140.3,140.24,45.0]
[1720867144813,6.5069,140.3,140.25,20.0]
[1720867145027,6.5069,140.3,140.26,45.0]
[1720867145614,8.28889576,140.3,140.26,45.0]
[1720867145923,6.5069,140.3,140.26,45.0]
[1720867150130,8.2888528,140.3,140.26,45.0]
[1720867150697,1.78209619,140.29,140.26,45.0]
[1720867152902,16.6041,140.28,140.21,8.70079412]
[1720867153104,16.6041,140.28,140.22,65.0]
[1720867154204,16.6041,140.28,140.21,8.70079412]
[1720867154406,16.6041,140.28,140.18,6.4323]
[1720867154595,1.78241119,140.27,140.19,20.0]
[1720867155504,18.38650315,140.28,140.2,45.0]
[1720867155705,1.7823971,140.31,140.21,20.0]
[1720867155908,16.6041,140.32,140.22,75.13079412]
[1720867156102,16.6041,140.32,140.23,21.42534801]
[1720867156420,16.6041,140.32,140.24,45.0]
[1720867156625,16.6041,140.32,140.25,21.42540849]
[1720867156837,16.6041,140.32,140.26,45.0]
[1720867157132,16.6041,140.32,140.27,1.42520525]
[1720867157330,1.78172347,140.31,140.27,1.42520525]
[1720867157631,16.6041,140.32,140.27,1.42520525]
[1720867159836,16.6041,140.32,140.27,21.42520525]
[1720867160010,16.6041,140.32,140.28,45.0]
[1720867162337,16.6041,140.32,140.29,0.9783137]
[1720867163009,16.6041,140.32,140.28,45.0]
[1720867164645,102.18670558,140.34,140.28,45.0]
[1720867165150,102.18670558,140.34,140.29,20.97851764]
[1720867165452,102.18670558,140.34,140.3,45.0]
[1720867165748,102.18670558,140.34,140.31,0.97837816]
[1720867166351,10.0,140.25,140.23,2.87242761]
[1720867166540,18.1274,140.27,140.16,0.39623967]
[1720867166857,21.78266477,140.26,140.16,0.39623967]
[1720867168329,31.78266477,140.26,140.16,0.39623967]
[1720867168959,21.78266477,140.26,140.16,0.39623967]
[1720867171553,21.78266477,140.26,140.16,26.51843967]
[1720867171757,21.78266477,140.26,140.17,45.0]
[1720867174631,1.78266477,140.26,140.17,45.0]
[1720867174825,1.78266477,140.26,140.18,20.0]
[1720867175041,1.78266477,140.26,140.19,45.0]
[1720867176137,18.1274,140.27,140.19,45.0]
[1720867176446,18.1274,140.27,140.2,20.0]
[1720867176647,18.1274,140.27,140.21,45.0]
[1720867177328,16.6041,140.27,140.21,45.0]
[1720867177527,16.5169,140.3,140.22,20.0]
[1720867177746,16.5169,140.3,140.23,45.0]
[1720867178140,16.5169,140.3,140.24,20.0]
[1720867178348,16.5169,140.3,140.25,45.0]
[1720867180855,1.78199278,140.29,140.25,45.0]
[1720867182359,16.5169,140.3,140.25,45.0]
[1720867182765,18.29890499,140.3,140.25,45.0]
[1720867183061,1.78200849,140.29,140.25,45.0]
[1720867185360,18.2991074,140.3,140.25,45.0]
[1720867185567,16.5169,140.3,140.25,45.0]
[1720867185736,18.29894491,140.3,140.26,1.42563593]
[1720867186045,16.5169,140.3,140.26,1.42563593]
[1720867186454,18.29894138,140.3,140.25,45.0]
[1720867187967,1.78202057,140.29,140.25,45.0]
[1720867188266,1.78202057,140.29,140.21,16.5018]
[1720867188558,1.78202057,140.29,140.22,65.0]
[1720867188958,1.78202057,140.29,140.22,45.0]
[1720867189150,21.78202057,140.29,140.22,45.0]
[1720867189664,21.78202057,140.29,140.17,16.1471]
[1720867190336,21.78202057,140.29,140.18,20.0]
[1720867191265,21.78202057,140.29,140.19,45.0]
[1720867191460,21.78202057,140.29,140.2,20.0]
[1720867191660,21.78202057,140.29,140.21,45.0]
[1720867196170,21.78202057,140.29,140.2,20.0]
[1720867196372,21.78202057,140.29,140.18,20.0]
[1720867196669,21.78202057,140.29,140.18,41.43]
[1720867197247,21.78202057,140.29,140.18,20.0]
[1720867197449,21.78202057,140.29,140.18,41.43]
[1720867197668,21.78202057,140.29,140.19,45.0]
[1720867198170,21.78202057,140.29,140.2,20.0]
[1720867198474,21.78202057,140.29,140.21,45.0]
[1720867201956,15.84614472,140.29,140.21,45.0]
[1720867202165,1.03258394,140.28,140.21,45.0]
[1720867204349,16.87872866,140.29,140.21,45.0]
[1720867204955,16.5169,140.3,140.22,20.0]
[1720867205165,16.5169,140.3,140.23,46.42423356]
[1720867205370,16.5169,140.3,140.24,20.0]
[1720867205575,16.5169,140.3,140.25,46.42425014]
[1720867206773,16.5169,140.3,140.17,16.1471]
[1720867206774,7.27758394,140.29,140.17,16.1471]
[1720867206965,20.0,140.28,140.17,16.1471]
[1720867207150,1.03258394,140.27,140.17,16.1471]
[1720867207472,1.03258394,140.26,140.17,16.1471]
[1720867207868,16.3952,140.25,140.16,9.33692845]
[1720867208080,1.03258394,140.24,140.16,6.54583967]
[1720867208659,1.03258394,140.24,140.16,0.39623967]
[1720867208975,7.22588394,140.23,140.16,0.39623967]
[1720867219177,16.3952,140.22,140.16,0.39623967]
[1720867219366,1.03258394,140.21,140.16,0.39623967]
[1720867227081,1.03258394,140.2,140.16,0.39623967]
[1720867230485,17.42778394,140.22,140.16,0.39623967]
[1720867233489,20.0,140.21,140.16,0.39623967]
[1720867233667,1.03258394,140.2,140.16,0.39623967]
[1720867254377,23.71288394,140.19,140.11,0.3760522]
[1720867254689,20.0,140.18,140.11,0.3760522]
[1720867254887,1.03258394,140.17,140.11,0.3760522]
[1720867273523,1.03258394,140.17,140.11,1.80322544]
[1720867273825,1.03258394,140.17,140.11,0.3760522]
[1720867275024,1.03258394,140.17,140.11,1.80315279]
[1720867276326,1.03258394,140.17,140.11,0.3760522]
[1720867277518,1.03258394,140.17,140.11,1.80330685]
[1720867277719,1.03258394,140.17,140.11,1.80318142]
[1720867278435,1.03258394,140.17,140.11,0.3760522]
[1720867279109,1.03258394,140.17,140.11,1.80319753]
[1720867279825,1.03258394,140.17,140.11,0.3760522]
[1720867281424,1.03258394,140.17,140.11,1.80325799]
[1720867281726,1.03258394,140.17,140.11,0.3760522]
[1720867281928,1.03258394,140.17,140.11,1.80323627]
[1720867282226,1.03258394,140.17,140.11,0.3760522]
[1720867285428,16.3287,140.16,140.11,0.3760522]
[1720867285753,21.03258394,140.15,140.11,0.3760522]
[1720867285923,1.03258394,140.14,140.11,0.3760522]
[1720867288748,21.03258394,140.15,140.11,0.3760522]
[1720867289051,16.3287,140.16,140.11,0.3760522]
[1720867289240,16.3287,140.16,140.11,1.80320924]
[1720867289438,1.03258394,140.18,140.11,0.3760522]
[1720867289643,1.03258394,140.17,140.11,0.3760522]
[1720867292868,15.9764,140.16,140.11,0.3760522]
[1720867293037,1.03258394,140.15,140.11,0.3760522]
[1720867293359,15.9764,140.16,140.11,0.3760522]
[1720867293360,1.03258394,140.14,140.11,0.3760522]
[1720867294262,7.50928394,140.14,140.11,0.3760522]
[1720867298260,1.03258394,140.14,140.11,0.3760522]
[1720867298656,1.03258394,140.15,140.11,0.3760522]
[1720867299462,15.9764,140.16,140.11,0.3760522]
[1720867299463,1.03258394,140.14,140.11,0.3760522]
[1720867299762,15.9764,140.16,140.11,0.3760522]
[1720867300757,1.03258394,140.15,140.11,0.3760522]
[1720867300970,1.03258394,140.14,140.11,0.3760522]
[1720867301967,1.03258394,140.15,140.11,0.3760522]
[1720867302269,1.03258394,140.14,140.11,0.3760522]
[1720867302448,15.9764,140.16,140.11,0.3760522]
[1720867302655,1.03258394,140.15,140.11,0.3760522]
[1720867307450,21.03258394,140.15,140.11,0.3760522]
[1720867309568,10.0,140.14,140.11,0.3760522]
[1720867309754,21.03258394,140.13,140.11,0.3760522]
[1720867315778,22.3983,140.12,140.11,0.3760522]
[1720867315982,36.0034,140.12,140.02,7.96666505]
[1720867316183,21.03258394,140.11,140.02,7.96666505]
[1720867316479,1.03258394,140.1,140.02,7.96666505]
[1720867316885,1.03258394,140.1,140.03,1.42790268]
[1720867317179,21.03258394,140.11,140.04,15.2704]
[1720867317375,21.03258394,140.14,140.05,45.0]
[1720867317684,20.0,140.13,140.05,45.0]
[1720867317895,1.03258394,140.12,140.05,45.0]
[1720867318183,1.03258394,140.14,140.05,45.0]
[1720867318384,1.03258394,140.14,140.06,27.96495667]
[1720867318578,1.03258394,140.14,140.07,45.0]
[1720867319163,1.03258394,140.13,140.07,45.0]
[1720867319358,16.0034,140.16,140.07,45.0]
[1720867319359,1.03258394,140.15,140.07,45.0]
[1720867319564,1.03258394,140.14,140.07,45.0]
[1720867319785,1.03258394,140.14,140.08,1.42743268]
[1720867320561,1.03258394,140.15,140.08,1.42743268]
[1720867320762,1.03258394,140.14,140.08,1.42743268]
[1720867320963,21.03258394,140.17,140.08,1.42743268]
[1720867321263,21.03258394,140.17,140.07,45.0]
[1720867322565,21.03258394,140.17,140.06,26.539]
[1720867323667,21.03258394,140.17,140.07,1.42738434]
[1720867323878,21.03258394,140.17,140.07,46.42738434]
[1720867324262,21.03258394,140.17,140.07,1.42738434]
[1720867325195,21.03258394,140.17,140.06,26.539]
[1720867325688,21.03258394,140.17,140.07,46.42751721]
[1720867331197,21.03258394,140.17,140.07,45.0]
[1720867331490,20.0,140.16,140.08,16.5112]
[1720867331695,1.03258394,140.15,140.09,45.0]
[1720867331993,1.03258394,140.14,140.1,1.42719575]
[1720867332293,1.03258394,140.14,140.09,45.0]
[1720867332469,1.03258394,140.17,140.09,45.0]
[1720867332670,1.03258394,140.17,140.08,16.5112]
[1720867332871,1.03258394,140.17,140.06,26.539]
[1720867332872,1.64896087,140.16,140.06,26.539]
[1720867333170,1.03258394,140.15,140.07,45.0]
[1720867333501,1.03258394,140.14,140.07,45.0]
[1720867334366,1.64896087,140.16,140.08,1.42747286]
[1720867334367,1.03258394,140.15,140.08,1.42747286]
[1720867335277,1.03258394,140.15,140.07,45.0]
[1720867335475,1.03258394,140.15,140.08,16.5112]
[1720867335788,1.03258394,140.15,140.09,46.42720213]
[1720867336088,2.68154481,140.16,140.09,46.42720213]
[1720867336395,1.03258394,140.17,140.09,46.42720213]
[1720867337096,1.03258394,140.17,140.1,6.3545]
[1720867337289,1.03258394,140.16,140.11,45.0]
[1720867337475,20.0,140.18,140.11,45.0]
[1720867338578,1.03258394,140.17,140.11,45.0]
[1720867342395,1.03258394,140.17,140.11,45.83971478]
[1720867343467,1.03258394,140.17,140.12,1.4271981]